Cogmind - Beta 12 @@@ ROGUE MODE // 2023.04.26 @ 16:25:15 Player: Mr Goldstein Result: Destroyed by Y-45 Defender with Beam Rifle Performance ------------- Evolutions (1) 500 Regions Visited (3) 600 Robots Destroyed (0) 0 Value Destroyed (0) 0 Prototype IDs (1) 20 Alien Tech Used (0) 0 Bonus (200) 200 TOTAL SCORE: 1320 Bonus ------- Pacifist 200 Cogmind --------- Core Integrity 0/400 Matter 300/300 Energy 99/100 System Corruption 0% Temperature Cool (9) Movement Core (50) Location -9/Materials Parts ------- > --- POWER (1) -------- (None) > --- PROPULSION (3) --- (None) > --- UTILITY (3) ------ (None) > --- WEAPON (2) ------- (None) > --- INVENTORY (5) ---- Light Ion Engine Small Storage Unit Structural Scanner Light Armor Plating Heavy Hammer Peak State ------------ > --- POWER ------------ (None) > --- PROPULSION ------- (None) > --- UTILITY ---------- Sensor Drone Bay > --- WEAPON ----------- (None) > --- INVENTORY -------- Light Ion Engine Small Storage Unit Structural Scanner Heavy Hammer [Rating: 8] Favorites ----------- Power None Propulsion Light Treads Treads Light Treads Wheel Compact Wheel Utility Light Armor Plating Device Sensor Drone Bay Protection Light Armor Plating Weapon None Build | -11 -10 -10 -9 ------- Run | Jun Mat Min Mat Slots Evolved 2 | . . . 2 Power . | . . . . Propulsion 1 | . . . 1 Utility 1 | . . . 1 Weapon . | . . . . Parts Attached 5 | 2 . 1 2 Power . | . . . . Engine . | . . . . Core . | . . . . Reactor . | . . . . Propulsion 3 | 2 . . 1 Treads 2 | 2 . . . Leg . | . . . . Wheel 1 | . . . 1 Hover . | . . . . Flight . | . . . . Utility 2 | . . 1 1 Device 1 | . . 1 . Storage . | . . . . Processor . | . . . . Hackware . | . . . . Protection 1 | . . . 1 Artifact . | . . . . Weapon . | . . . . Energy Gun . | . . . . Energy Cannon . | . . . . Ballistic Gun . | . . . . Ballistic Cannon . | . . . . Launcher . | . . . . Special Weapon . | . . . . Impact Weapon . | . . . . Slashing Weapon . | . . . . Piercing Weapon . | . . . . Special Melee Weapon . | . . . . Unidentified Prototypes 1 | . . 1 . Parts Lost 4 | . . 2 2 Power . | . . . . Propulsion 3 | . . 2 1 Utility 1 | . . . 1 Weapon . | . . . . Highest Loss Streak 2 | . . 2 2 To Critical Strikes . | . . . . Average Slot Usage (%) 19 | . 28 24 1 Treads 18 | . 28 24 . Naked Turns 117 | . . 18 99 Heaviest Build 3 | . . . 3 Greatest Support 40 | 40 3 3 3 Greatest Overweight (x) . | . . . . Average Overweight (x) . | . . . . Largest Inventory Capacity 5 | 5 5 5 5 Average Capacity 5 | 5 5 5 5 Most Carried 5 | 2 4 4 5 Average Carried 3 | . 3 4 4 Final Capacity 5 | 5 5 5 5 Final Carried 5 | 2 4 4 5 Class Distribution -------------------- 100% | Mutant Dominant Class ---------------- Mutant | -10/Materials Mutant | -10/Mines Mutant | -9/Materials Resources | -11 -10 -10 -9 ----------- Run | Jun Mat Min Mat Matter Collected 211 | 179 . 32 . Remotely . | . . . . Salvage Created . | . . . . Parts . | . . . . Haulers Intercepted . | . . . . Recyclers Shooed . | . . . . Parts Field Recycled . | . . . . Retrieved Matter . | . . . . Parts Self-Destructed . | . . . . Prevented . | . . . . Kills | -11 -10 -10 -9 ------- Run | Jun Mat Min Mat Combat Hostiles Destroyed . | . . . . Classes Destroyed . | . . . . Best Kill Streak . | . . . . Combat Bots Only . | . . . . Max Kills in Single Turn . | . . . . Gunslinging . | . . . . Exploded . | . . . . Melee . | . . . . Uniques/NPCs Destroyed . | . . . . Combat | -11 -10 -10 -9 -------- Run | Jun Mat Min Mat Damage Taken 1070 | . 367 158 545 Core 656 | . 148 97 411 Absorbed by Shields . | . . . . Core Remaining (%) 51 | 100 . 2 . Volleys Fired . | . . . . Largest . | . . . . Hottest . | . . . . Shots Fired . | . . . . Gun . | . . . . Cannon . | . . . . Launcher . | . . . . Special . | . . . . Kinetic . | . . . . Thermal . | . . . . Explosive . | . . . . Electromagnetic . | . . . . Robot Hit Streak . | . . . . Robot Miss Streak . | . . . . Penetration Max . | . . . . Secondary Targets . | . . . . Shots Hit Robots . | . . . . Core Hits 1 | . 1 . . Critical Kills . | . . . . Critical Parts Destroyed . | . . . . Critical Strikes . | . . . . Melee Attacks . | . . . . Impact . | . . . . Slashing . | . . . . Piercing . | . . . . Sneak Attacks . | . . . . Combat Hostiles . | . . . . Follow-up Attacks . | . . . . Damage Inflicted 76 | . 18 . 58 Guns . | . . . . Cannons . | . . . . Explosions . | . . . . Melee . | . . . . Ramming 76 | . 18 . 58 Kinetic . | . . . . Thermal . | . . . . Explosive . | . . . . Electromagnetic . | . . . . Impact . | . . . . Slashing . | . . . . Piercing . | . . . . Highest Corruption . | . . . . Average Corruption . | . . . . Corruption Purged . | . . . . Corruption Blocked . | . . . . Overload Shots . | . . . . Overflow Damage . | . . . . Projectiles . | . . . . Explosions . | . . . . Melee . | . . . . Knockbacks 1 | . 1 . . Impact 1 | . 1 . . Kinetic . | . . . . Secondary . | . . . . Self-Inflicted Damage 35 | . 9 . 26 Shots . | . . . . Rammed 13 | . 3 . 10 Targets Rammed 13 | . 3 . 10 Kicked . | . . . . Crushed . | . . . . Highest Temperature . | . . . . Average Temperature . | . . . . Received Heat Transfer 279 | . 183 . 96 Siege Activations . | . . . . Robots Corrupted . | . . . . Combat Hostiles . | . . . . Parts Fried . | . . . . Impact Corruptions . | . . . . Robots Melted . | . . . . Combat Hostiles . | . . . . Parts Melted . | . . . . Heat Transferred . | . . . . Parts Sabotaged . | . . . . Parts Stolen . | . . . . Parts Stripped . | . . . . Power Chain Reactions . | . . . . Missiles Intercepted . | . . . . Alert | -11 -10 -10 -9 ------- Run | Jun Mat Min Mat Peak Influence 250 | . 15 20 250 Initial 5 | . . 5 . Average 21 | . 12 8 53 Maximum Alert Level 1 | . . . 1 Low Security (%) 97 | 100 100 100 90 Level 1 2 | . . . 9 Level 2 . | . . . . Level 3 . | . . . . Level 4 . | . . . . Level 5 . | . . . . High Security . | . . . . Max Security . | . . . . Squads Dispatched 2 | . . . 2 Investigation 2 | . . . 2 Extermination . | . . . . Reinforcement . | . . . . Assault . | . . . . Garrison . | . . . . Intercept . | . . . . Searches Triggered . | . . . . Construction Impeded . | . . . . Haulers Reinforced . | . . . . Active Scanning Responses . | . . . . Cargo Convoy Interrupts . | . . . . Stealth | -11 -10 -10 -9 --------- Run | Jun Mat Min Mat Distress Signals 1 | . . . 1 Communications Jammed . | . . . . Distress Signals . | . . . . Times Spotted 25 | . 5 1 19 Peak Tracking Total 11 | . 4 1 11 Tactical Retreats 4 | . . . 4 Traps | -11 -10 -10 -9 ------- Run | Jun Mat Min Mat Traps Triggered 2 | . 1 . 1 Indirectly . | . . . . Trap Hack Attempts . | . . . . Triggered . | . . . . Disarmed . | . . . . Reprogrammed . | . . . . Reused . | . . . . Traps Extracted . | . . . . Installed . | . . . . Triggered . | . . . . Machines | -11 -10 -10 -9 ---------- Run | Jun Mat Min Mat Machines Disabled . | . . . . Max in Single Turn . | . . . . Machines Repaired . | . . . . Machines Sabotaged . | . . . . Overloaded Fab Kills . | . . . . Hacking | -11 -10 -10 -9 --------- Run | Jun Mat Min Mat Machines Accessed 2 | . . . 2 Terminals 2 | . . . 2 Fabricators . | . . . . Repair Stations . | . . . . Recycling Units . | . . . . Scanalyzers . | . . . . Garrison Access . | . . . . Total Hacks 7 | . . . 7 Successful . | . . . . Failed 7 | . . . 7 Catastrophic 1 | . . . 1 Database Lockouts . | . . . . Manual 7 | . . . 7 Terminals 7 | . . . 7 Fabricators . | . . . . Repair Stations . | . . . . Recycling Units . | . . . . Scanalyzers . | . . . . Garrison Access . | . . . . Terminal Hacks . | . . . . Fabricator Hacks . | . . . . Repair Station Hacks . | . . . . Recycling Unit Hacks . | . . . . Scanalyzer . | . . . . Garrison Access Hacks . | . . . . Unauthorized Hacks . | . . . . Terminals . | . . . . Fabricators . | . . . . Repair Stations . | . . . . Recycling Units . | . . . . Scanalyzers . | . . . . Garrison Access . | . . . . Data Cores Recovered . | . . . . Used . | . . . . Hacking Detections 2 | . . . 2 Full Trace Events 2 | . . . 2 Feedback Events . | . . . . Feedback Blocked . | . . . . Robot Schematics Acquired . | . . . . Robots Built . | . . . . Authchips . | . . . . Time . | . . . . Total Robot Build Rating . | . . . . Part Schematics Acquired . | . . . . Parts Built . | . . . . Authchips . | . . . . Time . | . . . . Total Part Build Rating . | . . . . Parts Repaired . | . . . . Time . | . . . . Parts Recycled . | . . . . Recycled Matter . | . . . . Retrieved Matter . | . . . . Retrieved Components . | . . . . Parts Scanalyzed . | . . . . Part Schematics Acquired . | . . . . Parts Damaged . | . . . . Bothacking | -11 -10 -10 -9 ------------ Run | Jun Mat Min Mat Used RIF Installer . | . . . . Robots Hacked . | . . . . Non-combat . | . . . . Combat . | . . . . Robot Hacks Applied . | . . . . Relay Couplers Released . | . . . . Fabnet Peak Effective % . | . . . . Robots Rewired . | . . . . Allies Hacked . | . . . . Hacks Repelled . | . . . . Allies | -11 -10 -10 -9 -------- Run | Jun Mat Min Mat Total Allies . | . . . . Largest Group . | . . . . Highest-Rated Group . | . . . . Highest-Rated Ally . | . . . . Total Orders . | . . . . Ally Attacks . | . . . . Total Damage . | . . . . Kills . | . . . . Allies Corrupted . | . . . . Allies Melted . | . . . . Intel | -11 -10 -10 -9 ------- Run | Jun Mat Min Mat Robot Analysis Total . | . . . . Derelict Logs Recovered 1 | . . 1 . Drone Launches . | . . . . Drone Recoveries . | . . . . Exploration | -11 -10 -10 -9 ------------- Run | Jun Mat Min Mat Turns Passed 476 | 30 143 176 127 Spaces Moved 881 | 33 276 347 225 Core 873 | 25 276 347 225 Treads 8 | 8 . . . Legs . | . . . . Wheels . | . . . . Hover . | . . . . Flight . | . . . . Fastest Speed 50 | 50 50 50 50 Average Speed 50 | 76 50 50 50 Slowest Speed 160 | 160 50 50 50 Overloaded Moves . | . . . . Propulsion Burnouts . | . . . . Robots Hopped . | . . . . Cave-ins Triggered . | . . . . Exploration Rate (%) 36 | 4 54 62 26 Regions Visited 3 Branch Regions 1 Pre-discovered Areas 1 | . . 1 . Known Exits Taken . | . . . . Unknown Exits Taken 3 | 1 1 1 . Scrap Searched 1 | . . 1 . Spaces Dug . | . . . . Terrain Destroyed . | . . . . Melee . | . . . . Projectile . | . . . . AOE . | . . . . Terrain Rammed . | . . . . Walls Destroyed . | . . . . Machines Disabled . | . . . . Actions | -11 -10 -10 -9 --------- Run | Jun Mat Min Mat Total 902 | 36 280 348 238 Wait . | . . . . Move 878 | 32 275 346 225 Hop . | . . . . Pick Up 5 | 2 2 . 1 Fast Attach 5 | 2 . 1 2 Attach . | . . . . Detach . | . . . . Swap . | . . . . Drop 1 | . . 1 . Fire . | . . . . Melee . | . . . . Ram 13 | . 3 . 10 Kick . | . . . . Crush . | . . . . Escape Stasis . | . . . . Rewire . | . . . . Trap . | . . . . Miscellaneous . | . . . . Route ------- -11/Junkyard -10/Materials (discovered 3 exits: *Mat x2 / [*Min]) -10/Mines (discovered 2 exits: *Mat x2) -9/Materials (discovered 1 exit: [*Mat]) History --------- Turn | Location | Event 4 | -11/Junkyard | Discovered new exit (range 15) 31 | -11/Junkyard | Entered Materials 51 | -10/Materials | Discovered new exit (range 14) 74 | -10/Materials | Discovered new exit (range 8) 133 | -10/Materials | Discovered new exit (range 8) 141 | -10/Materials | Core integrity fell below 50% 174 | -10/Materials | Entered Mines 180 | -10/Mines | Learned location of Zion (-6) 210 | -10/Mines | Assembled infested the area 317 | -10/Mines | Build established: Mutant 332 | -10/Mines | Core integrity fell below 20% 335 | -10/Mines | Discovered new exit (range 12) 344 | -10/Mines | Discovered new exit (range 7) 344 | -10/Mines | Found Prototype Device 344 | -10/Mines | Identified Sensor Drone Bay 350 | -10/Mines | Entered Materials 350 | -9/Materials | Evolved 2 slots: Propulsion x1, Utility x1 418 | -9/Materials | Core integrity fell below 50% 440 | -9/Materials | Core integrity fell below 20% 477 | -9/Materials | Discovered new exit (range 15) 477 | -9/Materials | Destroyed by Y-45 Defender with Beam Rifle Last Messages --------------- 00397_ Slammed into G-34 Mercenary. 00397_ Destabilizing: Core damaged (-12). 00398_ Slammed into G-34 Mercenary. 00399_ Destabilizing: Core damaged (-20). 00404_ K-01 Serf collects debris. 00409_ Com. Wheel destroyed. 00420_ Acquired Lgt. Armor Plating. 00424_ Slammed into S-10 Pest. 00424_ Destabilizing: Core damaged (-20). 00425_ Slammed into S-10 Pest. 00430_ Lgt. Armor Plating destroyed. 00433_ K-01 Serf collects debris. 00459_ Slammed into W-16 Scout. 00459_ W-16 Scout sends out distress signal. 00460_ Slammed into W-16 Scout. 00466_ Slammed into U-05 Engineer. 00475_ Triggered Alarm Trap. 00475_ An alarm sounds. 00475_ ALERT: Alarm triggered, dispatching investigation squad. 00477_ EXIT=FOUND Map ----- +----------------------------------------------------+ | ?????????????????????????????????????????????????? | | ?????????????????????????????????????????????????? | | ?????????????????????????????????????????????????? | | ?????????????????????????????????????????????????? | | ?????????????????????????????????????????????????? | | ?????????????????????????????????????????????????? | | ?????????????????????????????????????????????????? | | ?????????????????????????????????????????????????? | | ?????????????????????????????????????????????????? | | ?????????????????????????????????????????????????? | | ??????????????????????? < ??????????????????????? | | ??????????????????????? ??????????????????????? | | ??????????????????????? g #?????????????????????? | | ??????????????????????? ?????????????????????? | | ??????????????????????? ?????????????????????? | | ??????????????????????? w?????????????????????? | | ???????????????????????# #?????????????????????? | | ???????????????????????# #?????????????????????? | | ???????????????????????# #?????????????????????? | | ???????????????????????# #?????????????????????? | | ???????????????????????# #?????????????????????? | | ???????????????????????# #?????????????????????? | | ?????????????????##????# #?????????????????????? | | ????????????????# ??# #?????????????????????? | | ????????????????# """?# #?????????????????????? | | ????????????????# """ #k@ #?????????????????????? | | ????????????????# """ a #?????????????????????? | | ????????????????# # #?????????????????????? | | ????????????????# ?# #?????????????????????? | | ?????????????########### ##????????????????????? | | ????????????# # k #######??????????????? | | ????????????# """ """ # ??????????? | | ????????????# """ """ ; Y ##????????????? | | ????????????# """ """ # #?????????????? | | ??????####### # #### #?????????????? | | ??????# """ # #######???? #?????????????? | | ??????? """ # [ #??????????? #?????????????? | | ??????? """ # #??????????????????????????? | | ???????? #######+###??????????????????????????? | | ???????? #?????# #????????????????????????????? | | ????????? ??????# #????????????????????????????? | | ????????? ??????# #????????????????????????????? | | ?????????#+######## #####????????????????????????? | | ?????????# % +????????????????????????? | | ?????????# ##############????????????????????????? | | ?????????# #?????????????????????????????????????? | | ?????????# ########??????????????????????????????? | | ?????????# ???????????????????????? | | ?????????# ########??????????????????????????????? | | ?????????#%#?????????????????????????????????????? | +----------------------------------------------------+ Best States ------------- Heat Dissipation 28 Energy Generation 5 Energy Capacity 100 Matter Stores 300 Matter Capacity 300 Sight Range 16 Terrain Scan Density 10 Armor Coverage 150 Evasion (%) 50 Recoil Reduction 2 Item Schematics ----------------- None Robot Schematics ------------------ None Fabricated ------------ Nothing Alien Tech Used ----------------- None Achievements -------------- None Challenges ------------ None Game ------ Seed SuspensionImprovedScythe Manual? 0 Play Time 00:06:46 Cumulative 146.9 hours Start 2023.04.26 @ 16:20:05 End 2023.04.26 @ 16:25:15 Sessions 1 Manual Loads 0 Difficulty Rogue Special Mode None Game No. 426 Rogue 426 Adventurer 0 Explorer 0 Win Type - Total 7 Types 6/0/0/1/0/0/0/0/0 Lore% 65 Gallery% 70 Achievement% 61 Wizard Run 0 Options --------- ASCII 0 Keyboard 0 Movement Numpad Keybinds 0 Fullscreen 1 Font 16/SmallcapsGlow Map View 75x55 Tactical HUD 1 Map Filters NONE Filters NONE Steam 1 RUN: 51bf1d7f-f641-4091-b7d4-690b0359478e